Cogmind - Beta 10.1 @@@ ROGUE MODE // 2020.10.14 @ 22:40:34 Player: Shamgod Result: Destroyed by G-34 Mercenary with Small Laser Performance ------------- Evolutions (0) 0 Regions Visited (1) 200 Robots Destroyed (5) 25 Value Destroyed (165) 165 Prototype IDs (2) 40 Alien Tech Used (0) 0 Bonus (0) 0 TOTAL SCORE: 430 Bonus ------- None Cogmind --------- Core Integrity 0/250 Matter 256/300 Energy 245/250 System Corruption 0% Temperature Cool (6) Movement Walking (120) Location -10/Materials Parts ------- > --- POWER (1) -------- Ion Engine > --- PROPULSION (2) --- Aluminum Leg Aluminum Leg > --- UTILITY (2) ------ Medium Storage Unit Utility Shielding > --- WEAPON (2) ------- Assault Rifle Hammer > --- INVENTORY (8) ---- Light Ion Engine Aluminum Leg Aluminum Leg Hover Unit Heat Sink Small Storage Unit Peak State ------------ > --- POWER ------------ Light Ion Engine > --- PROPULSION ------- Wheel Wheel > --- UTILITY ---------- Small Matter Pod Small Matter Pod > --- WEAPON ----------- Light Assault Rifle Light Assault Rifle > --- INVENTORY -------- Aluminum Leg Aluminum Leg Assault Rifle [Rating: 7] Favorites ----------- Power Light Ion Engine Engine Light Ion Engine Propulsion Wheel Leg Aluminum Leg Wheel Wheel Utility Utility Shielding Storage Small Storage Unit Protection Utility Shielding Weapon Light Assault Rifle Ballistic Gun Light Assault Rifle Impact Weapon Hammer Build | -11 -10 ------- Run | Scr Mat Slots Evolved . | . . Power . | . . Propulsion . | . . Utility . | . . Weapon . | . . Parts Attached 22 | 7 15 Power 3 | 1 2 Engine 3 | 1 2 Core . | . . Reactor . | . . Propulsion 8 | 4 4 Treads . | . . Leg 6 | 2 4 Wheel 2 | 2 . Hover . | . . Flight . | . . Utility 7 | . 7 Device . | . . Storage 6 | . 6 Processor . | . . Hackware . | . . Protection 1 | . 1 Artifact . | . . Weapon 4 | 2 2 Energy Gun . | . . Energy Cannon . | . . Ballistic Gun 3 | 2 1 Ballistic Cannon . | . . Launcher . | . . Special Weapon . | . . Impact Weapon 1 | . 1 Slashing Weapon . | . . Piercing Weapon . | . . Special Melee Weapon . | . . Unidentified Prototypes . | . . Parts Lost 5 | . 5 Power 1 | . 1 Propulsion 2 | . 2 Utility . | . . Weapon 2 | . 2 Highest Loss Streak 5 | . 5 Average Slot Usage (%) 88 | . 88 Engine 11 | . 11 Leg 15 | . 15 Wheel 12 | . 12 Storage 14 | . 14 Protection 11 | . 11 Ballistic Gun 19 | . 19 Impact Weapon 2 | . 2 Naked Turns . | . . Heaviest Build 18 | 5 18 Greatest Support 20 | 20 20 Greatest Overweight (x) . | . . Average Overweight (x) . | . . Largest Inventory Capacity 8 | 4 8 Average Capacity 5 | 4 6 Most Carried 6 | 3 6 Average Carried 3 | 1 4 Final Capacity 8 | 4 8 Final Carried 6 | 3 6 Class Distribution -------------------- 100% | Mutant Dominant Class ---------------- Mutant | -10/Materials Resources | -11 -10 ----------- Run | Scr Mat Matter Collected 505 | 245 260 Remotely . | . . Salvage Created 184 | 42 142 Parts 11 | 2 9 Haulers Intercepted . | . . Recyclers Shooed . | . . Parts Field Recycled . | . . Retrieved Matter . | . . Parts Self-Destructed . | . . Prevented . | . . Kills | -11 -10 ------- Run | Scr Mat Combat Hostiles Destroyed 4 | 1 3 Guns 4 | 1 3 Classes Destroyed 2 | 1 1 Watcher 1 | . 1 Grunt 4 | 1 3 Best Kill Streak 3 | 1 3 Combat Bots Only 2 | 1 2 Max Kills in Single Turn 1 | 1 1 Gunslinging . | . . Exploded . | . . Melee . | . . Uniques/NPCs Destroyed . | . . Combat | -11 -10 -------- Run | Scr Mat Damage Taken 825 | 22 803 Core 259 | . 259 Absorbed by Shields . | . . Core Remaining (%) 100 | 100 . Volleys Fired 40 | 2 38 Largest 2 | 2 2 Hottest 40 | 40 40 Shots Fired 62 | 4 58 Gun 62 | 4 58 Cannon . | . . Launcher . | . . Special . | . . Kinetic 62 | 4 58 Thermal . | . . Explosive . | . . Electromagnetic . | . . Robot Hit Streak 10 | 1 10 Robot Miss Streak 2 | 1 2 Penetration Max . | . . Secondary Targets . | . . Shots Hit Robots 52 | 2 50 Core Hits 18 | 2 16 Critical Hits . | . . Critical Kills . | . . Critical Parts Destroyed . | . . Melee Attacks 6 | . 6 Impact 6 | . 6 Slashing . | . . Piercing . | . . Sneak Attacks . | . . Combat Hostiles . | . . Follow-up Attacks . | . . Damage Inflicted 525 | 16 509 Guns 446 | 16 430 Cannons . | . . Explosions . | . . Melee 79 | . 79 Ramming . | . . Kinetic 446 | 16 430 Thermal . | . . Explosive . | . . Electromagnetic . | . . Impact 79 | . 79 Slashing . | . . Piercing . | . . Highest Corruption . | . . Average Corruption . | . . Corruption Purged . | . . Overload Shots . | . . Overflow Damage . | . . Projectiles . | . . Explosions . | . . Melee . | . . Knockbacks . | . . Impact . | . . Kinetic . | . . Secondary . | . . Self-Inflicted Damage . | . . Shots . | . . Rammed . | . . Targets Rammed . | . . Kicked . | . . Crushed . | . . Highest Temperature 18 | 12 18 Average Temperature 6 | 9 6 Received Heat Transfer 474 | 12 462 Siege Activations . | . . Robots Corrupted . | . . Combat Hostiles . | . . Parts Fried . | . . Impact Corruptions . | . . Robots Melted . | . . Combat Hostiles . | . . Parts Melted . | . . Heat Transferred . | . . Parts Sabotaged . | . . Parts Stolen . | . . Parts Stripped . | . . Power Chain Reactions . | . . Missiles Intercepted . | . . Alert | -11 -10 ------- Run | Scr Mat Peak Influence 72 | 20 72 Initial 13 | . 13 Average 28 | 2 35 Maximum Alert Level . | . . Low Security (%) 100 | 100 100 Level 1 . | . . Level 2 . | . . Level 3 . | . . Level 4 . | . . Level 5 . | . . High Security . | . . Max Security . | . . Squads Dispatched 1 | . 1 Investigation . | . . Extermination . | . . Reinforcement 1 | . 1 Assault . | . . Garrison . | . . Intercept . | . . Construction Impeded . | . . Haulers Reinforced . | . . Stealth | -11 -10 --------- Run | Scr Mat Distress Signals . | . . Communications Jammed . | . . Distress Signals . | . . Times Spotted 12 | 1 11 Peak Tracking Total 5 | 1 5 Tactical Retreats 2 | . 2 Traps | -11 -10 ------- Run | Scr Mat Traps Triggered . | . . Indirectly . | . . Trap Hack Attempts . | . . Triggered . | . . Disarmed . | . . Reprogrammed . | . . Reused . | . . Traps Extracted . | . . Installed . | . . Triggered . | . . Machines | -11 -10 ---------- Run | Scr Mat Machines Disabled . | . . Max in Single Turn . | . . Machines Sabotaged . | . . Garrisons Compromised . | . . Overloaded Fab Kills . | . . Fab Network Shutdowns . | . . Hacking | -11 -10 --------- Run | Scr Mat Machines Accessed 1 | . 1 Terminals 1 | . 1 Fabricators . | . . Repair Stations . | . . Recycling Units . | . . Scanalyzers . | . . Garrison Access . | . . Total Hacks 3 | . 3 Successful 2 | . 2 Failed 1 | . 1 Catastrophic . | . . Database Lockouts . | . . Manual . | . . Terminals 3 | . 3 Fabricators . | . . Repair Stations . | . . Recycling Units . | . . Scanalyzers . | . . Garrison Access . | . . Terminal Hacks 2 | . 2 Prototype ID Bank 1 | . 1 Zone Layout 1 | . 1 Fabricator Hacks . | . . Repair Station Hacks . | . . Recycling Unit Hacks . | . . Scanalyzer . | . . Garrison Access Hacks . | . . Unauthorized Hacks . | . . Terminals . | . . Fabricators . | . . Repair Stations . | . . Recycling Units . | . . Scanalyzers . | . . Garrison Access . | . . Data Cores Recovered . | . . Used . | . . Hacking Detections . | . . Full Trace Events . | . . Feedback Events . | . . Feedback Blocked . | . . Robot Schematics Acquired . | . . Robots Built . | . . Matter . | . . Time . | . . Total Robot Build Rating . | . . Part Schematics Acquired . | . . Parts Built . | . . Matter . | . . Time . | . . Total Part Build Rating . | . . Parts Repaired . | . . Time . | . . Parts Recycled . | . . Recycled Matter . | . . Retrieved Matter . | . . Retrieved Components . | . . Parts Scanalyzed . | . . Part Schematics Acquired . | . . Parts Damaged . | . . Bothacking | -11 -10 ------------ Run | Scr Mat Used RIF Installer . | . . Robots Hacked . | . . Non-combat . | . . Combat . | . . Robot Hacks Applied . | . . Relay Couplers Released . | . . Robots Rewired . | . . Allies Hacked . | . . Hacks Repelled . | . . Allies | -11 -10 -------- Run | Scr Mat Total Allies . | . . Largest Group . | . . Highest-Rated Group . | . . Highest-Rated Ally . | . . Total Orders . | . . Ally Attacks . | . . Total Damage . | . . Kills . | . . Allies Corrupted . | . . Allies Melted . | . . Intel | -11 -10 ------- Run | Scr Mat Robot Analysis Total . | . . Derelict Logs Recovered . | . . Drone Launches . | . . Drone Recoveries . | . . Exploration | -11 -10 ------------- Run | Scr Mat Turns Passed 365 | 76 289 Spaces Moved 231 | 77 154 Core 17 | 17 . Treads . | . . Legs 81 | 4 77 Wheels 133 | 56 77 Hover . | . . Flight . | . . Fastest Speed 50 | 50 80 Average Speed 91 | 75 100 Slowest Speed 120 | 120 120 Overloaded Moves . | . . Propulsion Burnouts . | . . Robots Hopped . | . . Cave-ins Triggered . | . . Exploration Rate (%) 16 | 5 28 Regions Visited 1 Branch Regions . Pre-discovered Areas . | . . Known Exits Taken . | . . Unknown Exits Taken 1 | 1 . Scrap Searched . | . . Spaces Dug . | . . Terrain Destroyed . | . . Melee . | . . Projectile . | . . AOE . | . . Terrain Rammed . | . . Walls Destroyed . | . . Machines Disabled . | . . Actions | -11 -10 --------- Run | Scr Mat Total 317 | 88 229 Wait 10 | . 10 Move 230 | 76 154 Hop . | . . Pick Up 3 | 1 2 Fast Attach 14 | 7 7 Attach 3 | . 3 Detach 3 | 2 1 Swap 5 | . 5 Drop 3 | . 3 Fire 40 | 2 38 Melee 6 | . 6 Ram . | . . Kick . | . . Crush . | . . Escape Stasis . | . . Rewire . | . . Trap . | . . Miscellaneous . | . . Route ------- -11/Scrapyard -10/Materials History --------- Turn | Location | Event 2 | -11/Scrapyard | Met Revision 17 62 | -11/Scrapyard | Discovered new exit (range 8) 77 | -11/Scrapyard | Entered Materials 206 | -10/Materials | Core integrity fell below 50% 235 | -10/Materials | Lost 5 parts (1p2n2w) 238 | -10/Materials | Core integrity fell below 20% 327 | -10/Materials | Build established: Mutant 366 | -10/Materials | Destroyed by G-34 Mercenary with Small Laser Last Messages --------------- 00188_ K-01 Serf collects debris. 00193_ Acquired 32 matter. 00195_ Wheel destroyed. 00199_ Lgt. Assault Rifle destroyed. 00204_ Wheel destroyed. 00221_ W-16 Scout destroyed. 00227_ Acquired Lgt. Ion Engine. 00229_ Acquired 12 matter. 00231_ Acquired Hover Unit. 00232_ G-34 Mercenary destroyed. 00241_ G-47 Trooper destroyed. 00246_ Acquired 50 matter. 00262_ Acquired 42 matter. 00265_ Acquired Heat Sink. 00284_ O-16 Technician: "IFF HANDSHAKE FAILED. SECURING TERMINAL." 00286_ ALERT: Hostiles spotted, dispatching reinforcements to Terminal M006. 00297_ Dropped Sml. Storage Unit. 00306_ Acquired Hammer. 00314_ Connecting with Recycling Unit... Map ----- +----------------------------------------------------+ | ?????????????????????????????????????????????????? | | ?????????????????????????????????????????????????? | | ?????????????????????????????????????????????????? | | ?????????????????????????????????????????????????? | | ?????????????????????????????????????????????????? | | ?????????????????????????????????????????????????? | | ?????????????????????????????????????????????????? | | ?????????????????????????????????????????????????? | | ?????????????????????????????????????????????????? | | ?????????????????????????????????????????????????? | | ?????????????????????????????????????????????????? | | ?????????????????????????????????????????????????? | | ??##+##??????????????????????????????????????????? | | ?# ##### ??????##+####???????????????????????? | | ?# ???????? ????????????????????????? | | ?# ???????? ????????????????????????? | | ?? ???????? ????????????????????????? | | ?? " #????????# #????????????????????????? | | #?# """ #????????# #????????????????????????? | | # """ #????????# #????????????????????????? | | " # """ ########## ########?????????????????? | | " + ^ "" + # # #?????????????????? | | ??# """ ! # # # #?????????????????? | | ??# "" # """ # k # """ #?????????????????? | | ??# """ + "Y + g """ #?????????????????? | | ??# " ## """ # #@""" #?????????????????? | | ### ## # # g #?????????????????? | | ######### #####+##?????????????????? | | ### #???????# #????????????????????????? | | ??# #???????# #????????????????????????? | | ??# +???????# #????????????????????????? | | ??# #???????# #????????????????????????? | | ??# #+#???????# #????????????????????????? | | ??# +?????????# #????????????????????????? | | ??# ##?????????+ +????????????????????????? | | ?? #??????????# #????????????????????????? | | ? #??????????# +????????????????????????? | | ? ######??????????##/##????????????????????????? | | ? ?????????????????? ??????????????????????????? | | ! ?????????????????? ??????????????????????????? | | ! ??????????????????"??????????????????????????? | | ?## ?????????????????????????????????????????????? | | ??? ?????????????????????????????????????????????? | | ?????????????????????????????????????????????????? | | ?????????????????????????????????????????????????? | | ?????????????????????????????????????????????????? | | ?????????????????????????????????????????????????? | | ?????????????????????????????????????????????????? | | ?????????????????????????????????????????????????? | | ?????????????????????????????????????????????????? | +----------------------------------------------------+ Best States ------------- Heat Dissipation 25 Energy Generation 10 Energy Capacity 250 Matter Stores 365 Matter Capacity 400 Sight Range 16 Terrain Scan Density 10 Utility Shielding 33 Evasion (%) 50 Item Schematics ----------------- None Robot Schematics ------------------ None Fabricated ------------ Nothing Alien Tech Used ----------------- None Achievements -------------- None Challenges ------------ None Game ------ Seed TrapPortableMaul Manual? 0 Play Time 00:10:52 Cumulative 4.5 hours Start 2020.10.14 @ 22:34:17 End 2020.10.14 @ 22:40:34 Sessions 1 Manual Loads 0 Difficulty Rogue Special Mode None Game No. 9 Rogue 9 Adventurer 0 Explorer 0 Win Type - Total 0 Types 0/0/0/0/0/0/0/0/0 Lore% 2 Gallery% 7 Achievement% 5 Wizard Run 0 Options --------- ASCII 0 Keyboard 1 Movement Numpad Keybinds 0 Fullscreen 2 Font 16/CogWide Map View 76x50 Tactical HUD 1 Map Filters NONE Filters NONE Steam 1 RUN: 66f6757e-f253-4941-95b3-5d23f423fa01